Workbook

Sheet 预算调整总表
A1: 2022年社会保险基金收支预算调整总表 | E1: 2023年社会保险基金预算调整总表 | F1: 2023年社会保险基金预算调整总表 | I1: 2023年社会保险基金预算调整总表
B3: 蓬江区社保机构
B4: 项 目 | C4: 合计 | F4: 机关事业养老保险基金 | I4: 职工基本医疗保险基金 | L4: 居民基本医疗保险基金 | M4: 居民基本医疗保险基金 | N4: 工伤保险基金
C5: 年初预算数 | D5: 调整数 | E5: 调整后预算数 | F5: 年初预算数 | G5: 调整数 | H5: 调整后预算数 | I5: 年初预算数 | J5: 调整数 | K5: 调整后预算数 | L5: 年初预算数 | M5: 调整数 | N5: 调整后预算数
B6: 一、收入 | C6: =F6+I6+L6 -> 309,604,250.73 | D6: =G6+J6+M6 -> 2,000,000.00 | E6: =H6 -> 311,604,250.73 | F6: =机关事业单位基本养老保险基金收!B16 -> 309,604,250.73 | G6: =机关事业单位基本养老保险基金收!C16 -> 2,000,000.00 | H6: =机关事业单位基本养老保险基金收!D16 -> 311,604,250.73 | I6: 0 | J6: 0 | K6: 0 | L6: 0 | M6: 0 | N6: 0
B7: 其中:1.社会保险费收入 | C7: =F7+I7+L7 -> 307,455,409.73 | D7: =G7+J7+M7 -> 0 | E7: =H7 -> 307,455,409.73 | F7: =机关事业单位基本养老保险基金收!B4 -> 307,455,409.73 | G7: =机关事业单位基本养老保险基金收!C5 -> 0 | H7: =机关事业单位基本养老保险基金收!D4 -> 307,455,409.73 | I7: 0 | J7: 0 | K7: 0 | L7: 0 | M7: 0 | N7: 0
B8: 2.财政补贴收入 | C8: =F8+I8+L8 -> 0 | D8: =G8+J8+M8 -> 0 | E8: =H8 -> 0 | F8: =机关事业单位基本养老保险基金收!B7 -> 0 | G8: =机关事业单位基本养老保险基金收!C7 -> 0 | H8: =机关事业单位基本养老保险基金收!D7 -> 0 | I8: 0 | J8: 0 | K8: 0 | L8: 0 | M8: 0 | N8: 0
B9: 3.利息收入 | C9: =F9+I9+L9 -> 333,841.00 | D9: =G9+J9+M9 -> 0 | E9: =H9 -> 333,841.00 | F9: =机关事业单位基本养老保险基金收!B9 -> 333,841.00 | G9: =机关事业单位基本养老保险基金收!C9 -> 0 | H9: =机关事业单位基本养老保险基金收!D9 -> 333,841.00 | I9: 0 | J9: 0 | K9: 0 | L9: 0 | M9: 0 | N9: 0
B10: 4.委托投资收益
B11: 5.转移收入 | C11: =F11+I11 -> 1,800,000.00 | D11: =G11+J11 -> 2,000,000.00 | E11: =H11+K11 -> 3,800,000.00 | F11: =机关事业单位基本养老保险基金收!B10 -> 1,800,000.00 | G11: =机关事业单位基本养老保险基金收!C10 -> 2,000,000.00 | H11: =机关事业单位基本养老保险基金收!D10 -> 3,800,000.00 | I11: 0 | J11: 0 | K11: 0
B12: 6.其他收入 | C12: =F12 -> 15,000.00 | D12: =G12+J12+M12 -> 0 | E12: =H12+K12+N12 -> 15,000.00 | F12: =机关事业单位基本养老保险基金收!B11 -> 15,000.00 | G12: =机关事业单位基本养老保险基金收!C11 -> 0 | H12: =机关事业单位基本养老保险基金收!D11 -> 15,000.00 | I12: 0 | J12: 0 | K12: 0 | L12: 0 | M12: 0 | N12: 0
B13: 7.中央调剂资金收入 （省级专用）
B14: 8.中央调剂基金收入 （中央专用）
B15: 二、支出 | C15: =F15 -> 294,789,297.79 | D15: =G15+J15+M15 -> -6,595,950.49 | E15: =H15+K15+N15 -> 288,193,347.30 | F15: =机关事业单位基本养老保险基金收!F16 -> 294,789,297.79 | G15: =机关事业单位基本养老保险基金收!G16 -> -6,595,950.49 | H15: =机关事业单位基本养老保险基金收!H16 -> 288,193,347.30 | I15: 0 | J15: 0 | K15: 0 | L15: 0 | M15: 0 | N15: 0
B16: 其中:1.社会保险待遇支出 | C16: =F16 -> 286,336,337.26 | D16: =G16+J16+M16 -> -7,832,174.26 | E16: =H16+K16+N16 -> 278,504,163.00 | F16: =机关事业单位基本养老保险基金收!F4 -> 286,336,337.26 | G16: =机关事业单位基本养老保险基金收!G4 -> -7,832,174.26 | H16: =机关事业单位基本养老保险基金收!H4 -> 278,504,163.00 | I16: 0 | J16: 0 | K16: 0 | L16: 0 | M16: 0 | N16: 0
B17: 2.转移支出 | C17: =F17+I17 -> 1,800,000.00 | D17: =G17+J17 -> -500,000.00 | E17: =H17+K17 -> 1,300,000.00 | F17: =机关事业单位基本养老保险基金收!F7 -> 1,800,000.00 | G17: =机关事业单位基本养老保险基金收!G7 -> -500,000.00 | H17: =机关事业单位基本养老保险基金收!H7 -> 1,300,000.00 | I17: 0 | J17: 0 | K17: 0
B18: 3.其他支出 | C18: =F18+I18+L18 -> 0 | D18: =G18+J18+M18 -> 0 | E18: =H18+K18+N18 -> 0 | F18: =机关事业单位基本养老保险基金收!F8 -> 0 | G18: =机关事业单位基本养老保险基金收!G8 -> 0 | H18: =机关事业单位基本养老保险基金收!H8 -> 0 | I18: 0 | J18: 0 | K18: 0 | L18: 0 | M18: 0 | N18: 0
B19: 4.中央调剂基金支出 （中央专用）
B20: 5.中央调剂资金支出 （省级专用） | C20: !
B21: 三、本年收支结余 | C21: =F21+I21+L21 -> 14,814,952.94 | D21: =G21+J21+M21 -> 8,595,950.49 | E21: =H21+K21+N21 -> 23,410,903.43 | F21: =机关事业单位基本养老保险基金收!F17 -> 14,814,952.94 | G21: =机关事业单位基本养老保险基金收!G17 -> 8,595,950.49 | H21: =机关事业单位基本养老保险基金收!H17 -> 23,410,903.43 | I21: 0 | J21: 0 | K21: 0 | L21: 0 | M21: 0 | N21: 0
B22: 四、年末滚存结余 | C22: =F22+I22+L22 -> 37,290,970.10 | D22: =G22+J22+M22 -> 11,931,037.92 | E22: =H22+K22+N22 -> 49,222,008.02 | F22: =机关事业单位基本养老保险基金收!F18 -> 37,290,970.10 | G22: =机关事业单位基本养老保险基金收!G18 -> 11,931,037.92 | H22: =机关事业单位基本养老保险基金收!H18 -> 49,222,008.02 | I22: 0 | J22: 0 | K22: 0 | L22: 0 | M22: 0 | N22: 0

Sheet 机关事业单位基本养老保险基金收
A1: 2023年机关事业单位基本养老保险基金收支预算调整表
A2: 蓬江区社保机构 | H2: 单位：元
A3: 项 目 | B3: 年初预算数 | C3: 调整数 | D3: 调整后预算数 | E3: 项目 | F3: 年初预算数 | G3: 调整数 | H3: 调整后预算数
A4: 一、基本养老保险费收入 | B4: 307,455,409.73 | D4: =B4+C4 -> 307,455,409.73 | E4: 一、基本养老金支出 | F4: 286,336,337.26 | G4: -7,832,174.26 | H4: =F4+G4 -> 278,504,163.00
A5: 其中：当期征缴收入 | B5: 262,108,081.73 | D5: 262,108,081.73 | E5: 其中：当期支出 | F5: =F4-F6 -> 276,336,337.26 | G5: -7,832,174.26 | H5: 268,504,163.00
A6: 补缴收入 | B6: =B4-B5 -> 45,347,328.00 | D6: =D4-D5 -> 45,347,328.00 | E6: 补支 | F6: 10,000,000.00 | H6: 10,000,000.00
A7: 二、财政补贴收入 | C7: 0 | D7: 0.00 | E7: 二、转移支出 | F7: 1,800,000.00 | G7: -500,000.00 | H7: 1,300,000.00
A8: 其中：地方财政补贴 | C8: 0 | D8: 0.00 | E8: 三、其他支出 | F8: 0.00 | G8: 0 | H8: 0.00
A9: 三、利息收入 | B9: 333,841.00 | D9: 333,841.00 | E9: × | F9: × | G9: × | H9: ×
A10: 四、转移收入 | B10: 1,800,000.00 | C10: 2,000,000.00 | D10: 3,800,000.00 | E10: × | F10: × | G10: × | H10: ×
A11: 五、其他收入 | B11: 15,000.00 | D11: 15,000.00 | E11: × | F11: × | G11: × | H11: ×
A12: 其中：滞纳金 | B12: 0.00 | C12: 0 | D12: 0.00 | E12: × | F12: × | G12: × | H12: ×
A13: 六、本年收入小计 | B13: =B4+B9+B10+B11 -> 309,604,250.73 | C13: =C4+C7+C9+C10+C11 -> 2,000,000.00 | D13: 311,604,250.73 | E13: 四、本年支出小计 | F13: =F4+F7 -> 288,136,337.26 | G13: =G4+G7+G8 -> -8,332,174.26 | H13: =F13+G13 -> 279,804,163.00
A14: 七、上级补助收入 | D14: 0.00 | E14: 五、补助下级支出 | F14: 0.00 | G14: 0 | H14: 0.00
A15: 八、下级上解收入 | B15: 0.00 | C15: 0 | D15: 0.00 | E15: 六、上解上级支出 | F15: 6,652,960.53 | G15: 1,736,223.77 | H15: 8,389,184.30
A16: 九、本年收入合计 | B16: =B13 -> 309,604,250.73 | C16: =C13+C14+C15 -> 2,000,000.00 | D16: 311,604,250.73 | E16: 七、本年支出合计 | F16: =F15+F13 -> 294,789,297.79 | G16: =G13+G14+G15 -> -6,595,950.49 | H16: 288,193,347.30
A17: × | B17: × | C17: × | D17: × | E17: 八、本年收支结余 | F17: =B16-F16 -> 14,814,952.94 | G17: =C16-G16 -> 8,595,950.49 | H17: 23,410,903.43
A18: 十、上年结余 | B18: 22,476,017.16 | C18: 3,335,087.43 | D18: =B18+C18 -> 25,811,104.59 | E18: 九、年末滚存结余 | F18: =B18+F17 -> 37,290,970.10 | G18: =C18+G17 -> 11,931,037.92 | H18: 49,222,008.02
A19: 总 计 | B19: =B16+B18 -> 332,080,267.89 | C19: 5,335,087.43 | D19: =B19+C19 -> 337,415,355.32 | E19: 总 计 | F19: 332,080,267.89 | G19: 5,335,087.43 | H19: 337,415,355.32

Sheet 基本养老基础资料调整表
A1: 2023年基本养老保险基础资料预算调整表
A2: 蓬江区社保机构
A3: 项 目 | B3: 单位 | C3: 年初预算数 | D3: 调整数 | E3: 调整后预算数 | F3: 项 目 | G3: 单位 | H3: 年初预算数 | I3: 调整数 | J3: 调整后预算数
A4: 一、企业职工基本养老保险 | B4: × | C4: × | D4: × | E4: × | F4: (2)本年补缴以前年度欠费 | G4: 元
A5: (一)参保人数 | B5: 人 | F5: (3)新增欠费 | G5: 元
A6: 1.在职职工 | B6: 人 | F6: (4)年末累计欠费 | G6: 元
A7: 其中:个人身份参保 | B7: 人 | F7: 3.预缴以后年度基本养老保险费 | G7: 元
A8: 2.离休人员 | B8: 人 | F8: 4.一次性补缴以前年度基本养老保险费 | G8: 元
A9: 3.退休退职人员 | B9: 人 | F9: 二、城乡居民基本养老保险 | G9: × | H9: × | I9: × | J9: ×
A10: (1)当年新增退休退职人员 | B10: 人 | F10: (一)16－59周岁参保缴费人数 | G10: 人
A11: (2)当年死亡退休退职人员 | B11: 人 | F11: (二)实际领取待遇人员 | G11: 人
A12: (二)缴费人数 | B12: 人 | F12: (三)人均缴费水平 | G12: 元/年
A13: 其中:个人身份参保 | B13: 人 | F13: (四)人均财政对缴费补贴水平 | G13: 元/年
A14: (三)缴费基数总额 | B14: 元 | F14: 三、机关事业单位基本养老保险 | G14: × | H14: × | I14: × | J14: ×
A15: 其中:个人身份缴费基数总额 | B15: 元 | F15: (一)参保人数 | G15: 人 | H15: 11,507 | J15: =H15+I15 -> 11,507
A16: (四)缴费费率 | B16: % | F16: 1.在职职工 | G16: 人 | H16: 8,180 | J16: 8,180
A17: 1.单位缴费费率 | B17: % | F17: 2.退休、退职人员 | G17: 人 | H17: 3,327 | J17: 3,327
A18: 2.职工个人缴费费率 | B18: % | F18: (二)缴费人数 | G18: 人 | H18: 7980 | J18: 7,980
A19: 3.以个人身份参保缴费费率 | B19: % | F19: (三)缴费基数总额 | G19: × | H19: × | I19: × | J19: ×
A20: (五)人均缴费工资基数 | B20: 元 | F20: 1.单位 | G20: 元 | H20: 1,092,117,007.20 | J20: =H20+I20 -> 1,092,117,007.20
A21: (六)保险费缴纳情况 | B21: × | F21: 2.个人 | G21: 元 | H21: 1,092,117,007.20 | J21: 1,092,117,007.20
A22: 1.缴纳当年基本养老保险费 | B22: 元/年 | F22: (四)缴费费率 | G22: % | H22: 24.00 | I22: × | J22: 24.00
A23: 2.欠费情况 | B23: × | F23: (五)人均缴费工资基数 | G23: 元/年 | H23: 136,856.77 | I23: × | J23: =IF(J18=0,0,J21/J18) -> 136,856.77
A24: (1)上年末累计欠费 | B24: 元 | F24: 四、统筹地区职工平均工资 | G24: 元/年 | H24: 87,700.00 | J24: 87,700.00
